[Event "*** SCC Grand Prix: Titled Tuesday Blitz"]
[Site "Chess.com"]
[Date "2020.06.09"]
[Round "4"]
[White "Infernal_XaM"]
[Black "SCIM"]
[Result "1-0"]
[WhiteElo "2766"]
[BlackElo "2547"]
[TimeControl "180+1"]
[EndTime "9:39:10 PDT"]
[Termination "Infernal_XaM won by resignation"]

1. e4 {[%clk 0:03:00.9]} 1... c5 {[%clk 0:02:59.2]} 2. Nf3 {[%clk 0:03:00.5]}
2... e6 {[%clk 0:02:58.8]} 3. c3 {[%clk 0:02:59.6]} 3... Nf6 {[%clk 0:02:57.8]}
4. e5 {[%clk 0:02:59.7]} 4... Nd5 {[%clk 0:02:58.2]} 5. d4 {[%clk 0:03:00.3]}
5... cxd4 {[%clk 0:02:58.9]} 6. cxd4 {[%clk 0:02:56.9]} 6... d6 {[%clk
0:02:58.6]} 7. Bc4 {[%clk 0:02:56.3]} 7... Be7 {[%clk 0:02:58.1]} 8. O-O {[%clk
0:02:54.9]} 8... O-O {[%clk 0:02:57.3]} 9. Bxd5 {[%clk 0:02:55.4]} 9... exd5
{[%clk 0:02:56.6]} 10. Nc3 {[%clk 0:02:56]} 10... Be6 {[%clk 0:02:53.7]} 11. Bf4
{[%clk 0:02:54.7]} 11... Nc6 {[%clk 0:02:50.5]} 12. h3 {[%clk 0:02:54.8]} 12...
dxe5 {[%clk 0:02:44.6]} 13. dxe5 {[%clk 0:02:51.4]} 13... Rc8 {[%clk 0:02:38.2]}
14. Nb5 {[%clk 0:02:47.1]} 14... Qb6 {[%clk 0:02:30.9]} 15. Nbd4 {[%clk
0:02:46.8]} 15... Bc5 {[%clk 0:02:16.6]} 16. Be3 {[%clk 0:02:42.1]} 16... Nxd4
{[%clk 0:02:07.8]} 17. Bxd4 {[%clk 0:02:41.5]} 17... Bf5 {[%clk 0:01:35.2]} 18.
Rc1 {[%clk 0:02:37.9]} 18... Be4 {[%clk 0:01:25.7]} 19. Rxc5 {[%clk 0:02:35.8]}
19... Rxc5 {[%clk 0:01:26.6]} 20. Nd2 {[%clk 0:02:27.4]} 20... Qc6 {[%clk
0:01:05.2]} 21. Bxc5 {[%clk 0:02:25.1]} 21... Qxc5 {[%clk 0:01:06.1]} 22. Nb3
{[%clk 0:02:24.1]} 22... Qc7 {[%clk 0:00:54.2]} 23. Qd4 {[%clk 0:02:23.6]} 23...
b6 {[%clk 0:00:44.8]} 24. Rc1 {[%clk 0:02:22.8]} 24... Qe7 {[%clk 0:00:41.2]}
25. f3 {[%clk 0:02:07.6]} 25... Bf5 {[%clk 0:00:39]} 26. Qe3 {[%clk 0:02:01.3]}
26... Re8 {[%clk 0:00:32.2]} 27. Nd4 {[%clk 0:01:59]} 27... Bg6 {[%clk
0:00:27.7]} 28. Rc6 {[%clk 0:01:46.2]} 28... h6 {[%clk 0:00:24.2]} 29. e6 {[%clk
0:01:46.1]} 29... fxe6 {[%clk 0:00:22.4]} 30. Rxe6 {[%clk 0:01:45.7]} 30... Qf7
{[%clk 0:00:22]} 31. Rxe8+ {[%clk 0:01:42.8]} 31... Qxe8 {[%clk 0:00:22.9]} 32.
Qxe8+ {[%clk 0:01:42.7]} 32... Bxe8 {[%clk 0:00:23.8]} 33. Kf2 {[%clk
0:01:43.1]} 33... Kf7 {[%clk 0:00:23.8]} 34. Ke3 {[%clk 0:01:42.4]} 34... Bd7
{[%clk 0:00:24.3]} 35. h4 {[%clk 0:01:41.2]} 35... Ke7 {[%clk 0:00:22.5]} 36. h5
{[%clk 0:01:33]} 36... Kf6 {[%clk 0:00:20.7]} 37. Kf4 {[%clk 0:01:31.1]} 37...
Be8 {[%clk 0:00:18]} 38. g4 {[%clk 0:01:30.9]} 38... Bd7 {[%clk 0:00:18.5]} 39.
b4 {[%clk 0:01:30.6]} 39... Be8 {[%clk 0:00:16.8]} 40. Ke3 {[%clk 0:01:26.8]}
40... Ke5 {[%clk 0:00:14.8]} 41. f4+ {[%clk 0:01:24.6]} 41... Kf6 {[%clk
0:00:15.1]} 42. Nf3 {[%clk 0:01:23.6]} 42... Bd7 {[%clk 0:00:13.6]} 43. g5+
{[%clk 0:01:16.5]} 43... hxg5 {[%clk 0:00:12.6]} 44. fxg5+ {[%clk 0:01:16.1]}
44... Kf5 {[%clk 0:00:12.1]} 45. Kd4 {[%clk 0:01:14]} 45... Kf4 {[%clk
0:00:08.8]} 46. h6 {[%clk 0:01:13.6]} 46... gxh6 {[%clk 0:00:08.7]} 47. gxh6
{[%clk 0:01:13.9]} 47... Bf5 {[%clk 0:00:09.2]} 48. Ne5 {[%clk 0:01:10.3]} 48...
Bb1 {[%clk 0:00:07.8]} 49. Nd3+ {[%clk 0:01:07.5]} 49... Bxd3 {[%clk 0:00:02.5]}
50. Kxd3 {[%clk 0:01:07.1]} 1-0

[Event "*** SCC Grand Prix: Titled Tuesday Blitz"]
[Site "Chess.com"]
[Date "2020.06.09"]
[Round "4"]
[White "Dr_crypt"]
[Black "mjray79"]
[Result "1-0"]
[WhiteElo "2468"]
[BlackElo "2311"]
[TimeControl "180+1"]
[EndTime "9:39:12 PDT"]
[Termination "Dr_crypt won by checkmate"]

1. d4 {[%clk 0:02:58.5]} 1... Nf6 {[%clk 0:02:58.2]} 2. Nf3 {[%clk 0:02:57]}
2... g6 {[%clk 0:02:58.6]} 3. g3 {[%clk 0:02:57.1]} 3... Bg7 {[%clk 0:02:58.9]}
4. Bg2 {[%clk 0:02:58]} 4... O-O {[%clk 0:02:58.7]} 5. O-O {[%clk 0:02:58.9]}
5... d6 {[%clk 0:02:58.9]} 6. b3 {[%clk 0:02:58.6]} 6... a6 {[%clk 0:02:57]} 7.
Bb2 {[%clk 0:02:58.2]} 7... Nc6 {[%clk 0:02:56.8]} 8. d5 {[%clk 0:02:56.8]} 8...
Nb8 {[%clk 0:02:53.1]} 9. c4 {[%clk 0:02:56.4]} 9... b5 {[%clk 0:02:52.7]} 10.
Nbd2 {[%clk 0:02:55]} 10... Nbd7 {[%clk 0:02:48.9]} 11. Nd4 {[%clk 0:02:50.3]}
11... Bb7 {[%clk 0:02:48.1]} 12. Nc6 {[%clk 0:02:48.7]} 12... Bxc6 {[%clk
0:02:47.8]} 13. dxc6 {[%clk 0:02:48.8]} 13... Nb6 {[%clk 0:02:45.1]} 14. Qc2
{[%clk 0:02:35.2]} 14... e5 {[%clk 0:02:42.1]} 15. Rfd1 {[%clk 0:02:33.8]} 15...
bxc4 {[%clk 0:02:37.3]} 16. Nxc4 {[%clk 0:02:32.7]} 16... Nxc4 {[%clk
0:02:36.4]} 17. Qxc4 {[%clk 0:02:31.6]} 17... Qe7 {[%clk 0:02:31.7]} 18. Rac1
{[%clk 0:02:26.1]} 18... Kh8 {[%clk 0:02:25.8]} 19. e3 {[%clk 0:02:18.1]} 19...
Ne8 {[%clk 0:02:20]} 20. Rd5 {[%clk 0:02:15.4]} 20... f5 {[%clk 0:02:18.9]} 21.
Ra5 {[%clk 0:02:14.7]} 21... Nf6 {[%clk 0:02:07]} 22. Rxa6 {[%clk 0:02:13.6]}
22... Rad8 {[%clk 0:02:06.5]} 23. Ra7 {[%clk 0:02:00.7]} 23... g5 {[%clk
0:02:00.7]} 24. b4 {[%clk 0:01:55.9]} 24... f4 {[%clk 0:01:56.8]} 25. b5 {[%clk
0:01:35.1]} 25... Rb8 {[%clk 0:01:38.2]} 26. Rb7 {[%clk 0:01:28.8]} 26... Ng4
{[%clk 0:01:23.7]} 27. exf4 {[%clk 0:01:21.4]} 27... gxf4 {[%clk 0:01:22.1]} 28.
Rf1 {[%clk 0:01:09.6]} 28... Nh6 {[%clk 0:01:05.5]} 29. Rxb8 {[%clk 0:01:08.5]}
29... Rxb8 {[%clk 0:01:06.4]} 30. gxf4 {[%clk 0:01:09]} 30... exf4 {[%clk
0:01:06.5]} 31. Bxg7+ {[%clk 0:01:01.2]} 31... Qxg7 {[%clk 0:01:07.4]} 32. Kh1
{[%clk 0:00:59.2]} 32... Rf8 {[%clk 0:01:02.3]} 33. Bf3 {[%clk 0:00:53.9]} 33...
Qe7 {[%clk 0:00:51.7]} 34. Qc3+ {[%clk 0:00:53]} 34... Kg8 {[%clk 0:00:46.2]}
35. Rg1+ {[%clk 0:00:52.7]} 35... Kf7 {[%clk 0:00:46.2]} 36. Rg7+ {[%clk
0:00:51.9]} 36... Ke8 {[%clk 0:00:46.1]} 37. Rxe7+ {[%clk 0:00:50.1]} 37... Kxe7
{[%clk 0:00:47]} 38. b6 {[%clk 0:00:50.1]} 38... cxb6 {[%clk 0:00:46]} 39. c7
{[%clk 0:00:50.3]} 39... Kd7 {[%clk 0:00:45]} 40. Bb7 {[%clk 0:00:48.6]} 40...
Ng4 {[%clk 0:00:38.1]} 41. Qg7+ {[%clk 0:00:46.7]} 41... Ke6 {[%clk 0:00:36]}
42. Qxg4+ {[%clk 0:00:46.7]} 42... Ke5 {[%clk 0:00:36.4]} 43. Qg7+ {[%clk
0:00:46.6]} 43... Kf5 {[%clk 0:00:36.8]} 44. Qxf8+ {[%clk 0:00:46.8]} 44... Kg4
{[%clk 0:00:37.3]} 45. f3+ {[%clk 0:00:42.9]} 45... Kh4 {[%clk 0:00:36.3]} 46.
Qh6# {[%clk 0:00:42.3]} 1-0

[Event "*** SCC Grand Prix: Titled Tuesday Blitz"]
[Site "Chess.com"]
[Date "2020.06.09"]
[Round "4"]
[White "Shahinyan_ChessMood"]
[Black "GaboSalazar2001"]
[Result "0-1"]
[WhiteElo "2589"]
[BlackElo "2276"]
[TimeControl "180+1"]
[EndTime "9:39:13 PDT"]
[Termination "GaboSalazar2001 won on time"]

1. e4 {[%clk 0:03:00.9]} 1... c5 {[%clk 0:03:00.4]} 2. Nc3 {[%clk 0:03:00.2]}
2... a6 {[%clk 0:03:00.2]} 3. g3 {[%clk 0:02:59.5]} 3... b5 {[%clk 0:03:00.3]}
4. Bg2 {[%clk 0:03:00.4]} 4... Bb7 {[%clk 0:03:01]} 5. d3 {[%clk 0:03:01]} 5...
e6 {[%clk 0:03:01.6]} 6. Nh3 {[%clk 0:03:01]} 6... Nf6 {[%clk 0:02:58.4]} 7. O-O
{[%clk 0:02:56.1]} 7... h5 {[%clk 0:02:58.9]} 8. f4 {[%clk 0:02:52.5]} 8... Nc6
{[%clk 0:02:51.5]} 9. f5 {[%clk 0:02:31.3]} 9... Bd6 {[%clk 0:02:45.7]} 10. Ng5
{[%clk 0:02:12.2]} 10... Qc7 {[%clk 0:02:31.7]} 11. fxe6 {[%clk 0:02:02.3]}
11... dxe6 {[%clk 0:02:23.6]} 12. Bf4 {[%clk 0:02:02.6]} 12... h4 {[%clk
0:02:14]} 13. Qd2 {[%clk 0:01:50.2]} 13... hxg3 {[%clk 0:02:05.9]} 14. hxg3
{[%clk 0:01:51.1]} 14... Nd4 {[%clk 0:01:24.6]} 15. Bxd6 {[%clk 0:01:28.9]}
15... Qxd6 {[%clk 0:01:25.5]} 16. e5 {[%clk 0:01:29.4]} 16... Qxe5 {[%clk
0:01:07.5]} 17. Bxb7 {[%clk 0:01:29.1]} 17... Qxg3+ {[%clk 0:01:00.3]} 18. Qg2
{[%clk 0:01:28.7]} 18... Qxg2+ {[%clk 0:01:00.4]} 19. Bxg2 {[%clk 0:01:08.8]}
19... Ra7 {[%clk 0:00:55]} 20. Rf2 {[%clk 0:00:53]} 20... Rh5 {[%clk 0:00:54.3]}
21. Nce4 {[%clk 0:00:50]} 21... Ng4 {[%clk 0:00:50.9]} 22. Rxf7 {[%clk
0:00:21.3]} 22... Rxf7 {[%clk 0:00:46.2]} 23. Nd6+ {[%clk 0:00:21.2]} 23... Ke7
{[%clk 0:00:42.1]} 24. Ndxf7 {[%clk 0:00:21.7]} 24... Nxc2 {[%clk 0:00:35.8]}
25. Rc1 {[%clk 0:00:19.9]} 25... Nge3 {[%clk 0:00:36]} 26. Kf2 {[%clk
0:00:16.1]} 26... Kf6 {[%clk 0:00:22.8]} 27. Kf3 {[%clk 0:00:08.1]} 27... Nf5
{[%clk 0:00:19.7]} 28. Kf2 {[%clk 0:00:04.2]} 28... Nfd4 {[%clk 0:00:18.8]} 29.
b3 {[%clk 0:00:03.1]} 29... a5 {[%clk 0:00:17.6]} 0-1

[Event "*** SCC Grand Prix: Titled Tuesday Blitz"]
[Site "Chess.com"]
[Date "2020.06.09"]
[Round "4"]
[White "AtabayevSaparmyrat"]
[Black "Lubov_Gordyk"]
[Result "1-0"]
[WhiteElo "2797"]
[BlackElo "2627"]
[TimeControl "180+1"]
[EndTime "9:39:16 PDT"]
[Termination "AtabayevSaparmyrat won on time"]

1. e4 {[%clk 0:03:00]} 1... g6 {[%clk 0:02:59.4]} 2. d4 {[%clk 0:03:00]} 2...
Bg7 {[%clk 0:02:51.2]} 3. Nc3 {[%clk 0:03:00.4]} 3... d6 {[%clk 0:02:50.6]} 4.
Nf3 {[%clk 0:03:00.9]} 4... a6 {[%clk 0:02:49.9]} 5. Bd3 {[%clk 0:03:00.7]} 5...
b5 {[%clk 0:02:43.7]} 6. a4 {[%clk 0:02:59.9]} 6... b4 {[%clk 0:02:41]} 7. Nd5
{[%clk 0:03:00.4]} 7... a5 {[%clk 0:02:30.4]} 8. c3 {[%clk 0:03:00.8]} 8... c6
{[%clk 0:02:25.8]} 9. Ne3 {[%clk 0:03:00.4]} 9... Nf6 {[%clk 0:02:23.4]} 10. O-O
{[%clk 0:02:59.7]} 10... O-O {[%clk 0:02:20.6]} 11. Bd2 {[%clk 0:02:56.8]} 11...
Ba6 {[%clk 0:02:17.2]} 12. Qc2 {[%clk 0:02:50.3]} 12... Bxd3 {[%clk 0:02:14.7]}
13. Qxd3 {[%clk 0:02:48.2]} 13... bxc3 {[%clk 0:02:14.6]} 14. bxc3 {[%clk
0:02:48.5]} 14... d5 {[%clk 0:02:08]} 15. e5 {[%clk 0:02:33.3]} 15... Ne4 {[%clk
0:02:07.9]} 16. Rab1 {[%clk 0:02:23.6]} 16... f5 {[%clk 0:01:59.3]} 17. exf6
{[%clk 0:02:18.8]} 17... exf6 {[%clk 0:01:51.4]} 18. c4 {[%clk 0:02:16.5]} 18...
Na6 {[%clk 0:01:45.2]} 19. cxd5 {[%clk 0:02:11]} 19... cxd5 {[%clk 0:01:41.9]}
20. Rb5 {[%clk 0:02:05.9]} 20... Nxd2 {[%clk 0:01:37.6]} 21. Nxd2 {[%clk
0:02:06.4]} 21... Nb4 {[%clk 0:01:27.4]} 22. Qb3 {[%clk 0:02:06.3]} 22... Kh8
{[%clk 0:01:24.7]} 23. Nxd5 {[%clk 0:02:04.3]} 23... Nxd5 {[%clk 0:01:19]} 24.
Rxd5 {[%clk 0:01:48.7]} 24... Qe7 {[%clk 0:01:14.6]} 25. Rb5 {[%clk 0:01:46.4]}
25... Rfd8 {[%clk 0:00:47.3]} 26. d5 {[%clk 0:01:45.9]} 26... Qe2 {[%clk
0:00:45.4]} 27. Nc4 {[%clk 0:01:44.2]} 27... f5 {[%clk 0:00:31.2]} 28. Nxa5
{[%clk 0:01:41.4]} 28... Qe4 {[%clk 0:00:18.1]} 29. Nc6 {[%clk 0:01:39.1]} 29...
Re8 {[%clk 0:00:16.7]} 30. a5 {[%clk 0:01:39]} 30... f4 {[%clk 0:00:15.1]} 31.
Rb4 {[%clk 0:01:29.4]} 31... Qe2 {[%clk 0:00:14.9]} 32. Rxf4 {[%clk 0:01:25.4]}
32... Bh6 {[%clk 0:00:06.1]} 33. Qc3+ {[%clk 0:01:21.3]} 33... Bg7 {[%clk
0:00:06.4]} 34. Qf3 {[%clk 0:01:20.3]} 34... Qb5 {[%clk 0:00:06.5]} 35. Rf7
{[%clk 0:01:16.8]} 35... Qc5 {[%clk 0:00:06.3]} 36. g3 {[%clk 0:01:12.9]} 36...
Rf8 {[%clk 0:00:06.3]} 37. Re1 {[%clk 0:01:07.6]} 37... Rxf7 {[%clk 0:00:05.3]}
38. Qxf7 {[%clk 0:01:08.5]} 38... Rf8 {[%clk 0:00:03.9]} 39. Re8 {[%clk
0:01:08.4]} 1-0

[Event "*** SCC Grand Prix: Titled Tuesday Blitz"]
[Site "Chess.com"]
[Date "2020.06.09"]
[Round "4"]
[White "ecwinslow"]
[Black "Grandmaster2B"]
[Result "0-1"]
[WhiteElo "2237"]
[BlackElo "2430"]
[TimeControl "180+1"]
[EndTime "9:39:16 PDT"]
[Termination "Grandmaster2B won by resignation"]

1. e4 {[%clk 0:03:00.9]} 1... c5 {[%clk 0:02:58.2]} 2. Nf3 {[%clk 0:03:00.2]}
2... d6 {[%clk 0:02:58.6]} 3. d4 {[%clk 0:02:59.9]} 3... cxd4 {[%clk 0:02:59.5]}
4. Nxd4 {[%clk 0:02:59.7]} 4... Nf6 {[%clk 0:03:00.2]} 5. Nc3 {[%clk 0:03:00]}
5... a6 {[%clk 0:03:00.7]} 6. Bg5 {[%clk 0:02:58.7]} 6... e6 {[%clk 0:03:00.7]}
7. f4 {[%clk 0:02:58.8]} 7... Be7 {[%clk 0:03:00.9]} 8. Qf3 {[%clk 0:02:58.2]}
8... Qc7 {[%clk 0:03:01.3]} 9. O-O-O {[%clk 0:02:58.2]} 9... Nbd7 {[%clk
0:03:02]} 10. f5 {[%clk 0:02:57.4]} 10... e5 {[%clk 0:03:01]} 11. Nde2 {[%clk
0:02:56.3]} 11... b5 {[%clk 0:02:59.9]} 12. Bxf6 {[%clk 0:02:48.6]} 12... Nxf6
{[%clk 0:03:00.8]} 13. Nd5 {[%clk 0:02:48.2]} 13... Nxd5 {[%clk 0:02:59.6]} 14.
exd5 {[%clk 0:02:47.3]} 14... Qc4 {[%clk 0:02:30.6]} 15. Kb1 {[%clk 0:02:44.7]}
15... Qc7 {[%clk 0:02:10.8]} 16. Nc3 {[%clk 0:02:36.2]} 16... O-O {[%clk
0:02:07.7]} 17. Ne4 {[%clk 0:02:33.1]} 17... f6 {[%clk 0:02:03]} 18. g4 {[%clk
0:02:31.8]} 18... Bd7 {[%clk 0:02:00.9]} 19. h4 {[%clk 0:02:28.2]} 19... b4
{[%clk 0:01:58.5]} 20. Bd3 {[%clk 0:02:18.4]} 20... a5 {[%clk 0:01:51.3]} 21. g5
{[%clk 0:02:14.2]} 21... a4 {[%clk 0:01:43.6]} 22. gxf6 {[%clk 0:02:01.7]} 22...
Bxf6 {[%clk 0:01:44.5]} 23. Rhg1 {[%clk 0:01:54.6]} 23... b3 {[%clk 0:01:24.7]}
24. cxb3 {[%clk 0:01:47.4]} 24... axb3 {[%clk 0:01:24.3]} 25. a3 {[%clk
0:01:42.5]} 25... Kh8 {[%clk 0:01:15.7]} 26. Rc1 {[%clk 0:01:30.8]} 26... Qb6
{[%clk 0:01:08.4]} 27. Rg6 {[%clk 0:01:14.6]} 27... hxg6 {[%clk 0:00:36.6]} 28.
fxg6 {[%clk 0:01:11.2]} 28... Bg5 {[%clk 0:00:36.5]} 29. Qh5+ {[%clk 0:00:50.8]}
29... Bh6 {[%clk 0:00:36.1]} 30. Ng5 {[%clk 0:00:46.4]} 30... Qe3 {[%clk
0:00:35.6]} 31. Rd1 {[%clk 0:00:38.8]} 31... Bf5 {[%clk 0:00:18.8]} 32. Bxf5
{[%clk 0:00:27.4]} 32... Rxf5 {[%clk 0:00:19.7]} 33. Nf7+ {[%clk 0:00:26.7]}
33... Rxf7 {[%clk 0:00:20.3]} 34. gxf7 {[%clk 0:00:26.4]} 34... Qe4+ {[%clk
0:00:18.6]} 35. Ka1 {[%clk 0:00:24.8]} 35... Qc2 {[%clk 0:00:13]} 36. f8=Q+
{[%clk 0:00:15.1]} 36... Rxf8 {[%clk 0:00:09.4]} 0-1

[Event "*** SCC Grand Prix: Titled Tuesday Blitz"]
[Site "Chess.com"]
[Date "2020.06.09"]
[Round "4"]
[White "GelmanAlexander"]
[Black "esrosenberg"]
[Result "1-0"]
[WhiteElo "2547"]
[BlackElo "2213"]
[TimeControl "180+1"]
[EndTime "9:39:19 PDT"]
[Termination "GelmanAlexander won by checkmate"]

1. c4 {[%clk 0:02:57.6]} 1... e5 {[%clk 0:02:59.2]} 2. e3 {[%clk 0:02:52]} 2...
Nc6 {[%clk 0:02:55.2]} 3. a3 {[%clk 0:02:46.8]} 3... f5 {[%clk 0:02:50]} 4. d3
{[%clk 0:02:36.4]} 4... Nf6 {[%clk 0:02:49.7]} 5. b4 {[%clk 0:02:32.2]} 5... a6
{[%clk 0:02:49]} 6. Bb2 {[%clk 0:02:29.4]} 6... d6 {[%clk 0:02:48.9]} 7. Nd2
{[%clk 0:02:27.9]} 7... Be7 {[%clk 0:02:48.9]} 8. Ngf3 {[%clk 0:02:26]} 8... O-O
{[%clk 0:02:49.4]} 9. Qc2 {[%clk 0:02:23.7]} 9... Qe8 {[%clk 0:02:47.1]} 10. Be2
{[%clk 0:02:18.3]} 10... Qg6 {[%clk 0:02:36.6]} 11. g3 {[%clk 0:01:57]} 11...
Qh6 {[%clk 0:02:26.4]} 12. h3 {[%clk 0:01:47.9]} 12... f4 {[%clk 0:02:21.9]} 13.
gxf4 {[%clk 0:01:47]} 13... exf4 {[%clk 0:02:22]} 14. e4 {[%clk 0:01:47.5]}
14... Nd7 {[%clk 0:01:44.6]} 15. d4 {[%clk 0:01:44.6]} 15... Nd8 {[%clk
0:01:21.1]} 16. O-O-O {[%clk 0:01:42.7]} 16... a5 {[%clk 0:01:13.2]} 17. b5
{[%clk 0:01:41.9]} 17... a4 {[%clk 0:01:12.7]} 18. h4 {[%clk 0:01:32.5]} 18...
Nb6 {[%clk 0:01:05.6]} 19. Rdg1 {[%clk 0:01:27.6]} 19... d5 {[%clk 0:00:55.8]}
20. cxd5 {[%clk 0:01:22.6]} 20... Nf7 {[%clk 0:00:36.4]} 21. Ng5 {[%clk
0:01:00.8]} 21... Nd6 {[%clk 0:00:27.8]} 22. Kb1 {[%clk 0:00:58.2]} 22... Bd7
{[%clk 0:00:25.5]} 23. Qxc7 {[%clk 0:00:47.1]} 23... Ne8 {[%clk 0:00:20.6]} 24.
Qxb7 {[%clk 0:00:41.2]} 24... Rd8 {[%clk 0:00:18.2]} 25. Ndf3 {[%clk 0:00:32.9]}
25... Qg6 {[%clk 0:00:15.2]} 26. h5 {[%clk 0:00:28.6]} 26... Qf6 {[%clk
0:00:13.7]} 27. Bd3 {[%clk 0:00:25.2]} 27... h6 {[%clk 0:00:12.8]} 28. e5 {[%clk
0:00:24.7]} 28... Qf5 {[%clk 0:00:11]} 29. Bxf5 {[%clk 0:00:24.6]} 29... Bxf5+
{[%clk 0:00:11.9]} 30. Ka1 {[%clk 0:00:25]} 30... Nc4 {[%clk 0:00:12.3]} 31.
Qxe7 {[%clk 0:00:23.5]} 31... Nxb2 {[%clk 0:00:10]} 32. Kxb2 {[%clk 0:00:19.8]}
32... hxg5 {[%clk 0:00:09.6]} 33. Rxg5 {[%clk 0:00:20.1]} 33... Rf7 {[%clk
0:00:09.2]} 34. Qxd8 {[%clk 0:00:19.9]} 34... Kh7 {[%clk 0:00:09.7]} 35. Qxe8
{[%clk 0:00:19.9]} 35... Be4 {[%clk 0:00:10.3]} 36. Qxf7 {[%clk 0:00:19.7]}
36... Bxf3 {[%clk 0:00:10.6]} 37. Qxg7# {[%clk 0:00:20]} 1-0

[Event "*** SCC Grand Prix: Titled Tuesday Blitz"]
[Site "Chess.com"]
[Date "2020.06.09"]
[Round "4"]
[White "Sychev_Klementy"]
[Black "Witik"]
[Result "1-0"]
[WhiteElo "2854"]
[BlackElo "2576"]
[TimeControl "180+1"]
[EndTime "9:39:20 PDT"]
[Termination "Sychev_Klementy won on time"]

1. e4 {[%clk 0:03:00.9]} 1... c6 {[%clk 0:02:58.9]} 2. d4 {[%clk 0:03:00.1]}
2... d5 {[%clk 0:02:59.4]} 3. e5 {[%clk 0:03:00.2]} 3... Bf5 {[%clk 0:02:59]} 4.
Bd3 {[%clk 0:02:59.8]} 4... Bxd3 {[%clk 0:02:55.8]} 5. Qxd3 {[%clk 0:03:00.7]}
5... e6 {[%clk 0:02:56.4]} 6. Ne2 {[%clk 0:03:01.1]} 6... c5 {[%clk 0:02:45.7]}
7. c3 {[%clk 0:02:59.8]} 7... cxd4 {[%clk 0:02:39.5]} 8. cxd4 {[%clk 0:02:59.7]}
8... Ne7 {[%clk 0:02:34.3]} 9. O-O {[%clk 0:02:58.3]} 9... Nd7 {[%clk
0:02:31.4]} 10. Nd2 {[%clk 0:02:57.7]} 10... Nc6 {[%clk 0:02:29.8]} 11. f4
{[%clk 0:02:52.5]} 11... g6 {[%clk 0:02:26.6]} 12. Nf3 {[%clk 0:02:40]} 12...
Be7 {[%clk 0:02:11]} 13. g4 {[%clk 0:02:37.5]} 13... Qb6 {[%clk 0:02:06.4]} 14.
Be3 {[%clk 0:02:20.6]} 14... O-O-O {[%clk 0:02:03.3]} 15. a3 {[%clk 0:02:18.3]}
15... h5 {[%clk 0:02:01.5]} 16. h3 {[%clk 0:02:17.2]} 16... Kb8 {[%clk
0:01:54.6]} 17. b4 {[%clk 0:02:12.9]} 17... a6 {[%clk 0:01:48.2]} 18. Rfc1
{[%clk 0:02:08.6]} 18... hxg4 {[%clk 0:01:42.7]} 19. hxg4 {[%clk 0:02:07.6]}
19... Rc8 {[%clk 0:01:00.4]} 20. Kg2 {[%clk 0:02:00.9]} 20... Na7 {[%clk
0:00:56]} 21. Nc3 {[%clk 0:01:58.8]} 21... Nb5 {[%clk 0:00:31.4]} 22. Na4 {[%clk
0:01:56.3]} 22... Qa7 {[%clk 0:00:31.6]} 23. Nc5 {[%clk 0:01:54.3]} 23... Nb6
{[%clk 0:00:21.2]} 24. a4 {[%clk 0:01:47.3]} 24... Nc7 {[%clk 0:00:20.5]} 25.
Qe2 {[%clk 0:01:37.7]} 25... Nc4 {[%clk 0:00:20.5]} 26. Rxc4 {[%clk 0:01:32.8]}
26... dxc4 {[%clk 0:00:20.6]} 27. Nd7+ {[%clk 0:01:32.5]} 27... Ka8 {[%clk
0:00:18.8]} 28. b5 {[%clk 0:00:59.7]} 28... Nd5 {[%clk 0:00:18.1]} 29. Rb1
{[%clk 0:00:52.9]} 29... Nc3 {[%clk 0:00:14.2]} 30. Qe1 {[%clk 0:00:51.6]} 30...
Nxb1 {[%clk 0:00:14.3]} 31. b6 {[%clk 0:00:51.4]} 31... Na3 {[%clk 0:00:11]} 32.
bxa7 {[%clk 0:00:50.2]} 32... Rc6 {[%clk 0:00:10.2]} 33. d5 {[%clk 0:00:47.3]}
33... exd5 {[%clk 0:00:10.3]} 34. Nb6+ {[%clk 0:00:47.1]} 34... Rxb6 {[%clk
0:00:09.5]} 35. Bxb6 {[%clk 0:00:46.9]} 35... Rc8 {[%clk 0:00:09.1]} 36. e6
{[%clk 0:00:46]} 36... c3 {[%clk 0:00:08.3]} 37. exf7 {[%clk 0:00:40.5]} 37...
c2 {[%clk 0:00:08.6]} 38. Qxe7 {[%clk 0:00:38.3]} 38... c1=Q {[%clk 0:00:07.7]}
39. f8=Q {[%clk 0:00:38.2]} 1-0

[Event "*** SCC Grand Prix: Titled Tuesday Blitz"]
[Site "Chess.com"]
[Date "2020.06.09"]
[Round "4"]
[White "SketchyMoves"]
[Black "aleksandrovaleksei"]
[Result "1-0"]
[WhiteElo "2654"]
[BlackElo "2590"]
[TimeControl "180+1"]
[EndTime "9:39:21 PDT"]
[Termination "SketchyMoves won on time"]

1. b3 {[%clk 0:03:00.9]} 1... d5 {[%clk 0:02:58.6]} 2. Bb2 {[%clk 0:03:01.2]}
2... c6 {[%clk 0:02:57.9]} 3. Nf3 {[%clk 0:03:01.2]} 3... Bf5 {[%clk 0:02:55.2]}
4. e3 {[%clk 0:03:01.3]} 4... h6 {[%clk 0:02:54.5]} 5. c4 {[%clk 0:03:01.7]}
5... e6 {[%clk 0:02:54.3]} 6. cxd5 {[%clk 0:03:00.5]} 6... exd5 {[%clk
0:02:53.6]} 7. d3 {[%clk 0:03:00.7]} 7... Nf6 {[%clk 0:02:52.9]} 8. Be2 {[%clk
0:03:01.1]} 8... Bd6 {[%clk 0:02:49.4]} 9. Nbd2 {[%clk 0:03:00.3]} 9... O-O
{[%clk 0:02:48.6]} 10. O-O {[%clk 0:02:59.3]} 10... Re8 {[%clk 0:02:48]} 11. Re1
{[%clk 0:02:58.9]} 11... a5 {[%clk 0:02:46.2]} 12. a3 {[%clk 0:02:58.8]} 12...
Na6 {[%clk 0:02:44.3]} 13. Qc2 {[%clk 0:02:55.3]} 13... Bh7 {[%clk 0:02:32.2]}
14. Bf1 {[%clk 0:02:54.2]} 14... Nc5 {[%clk 0:02:31.3]} 15. Rad1 {[%clk
0:02:47.5]} 15... Bf8 {[%clk 0:02:12.4]} 16. e4 {[%clk 0:02:42.2]} 16... dxe4
{[%clk 0:02:05.5]} 17. dxe4 {[%clk 0:02:38]} 17... Qe7 {[%clk 0:02:00.4]} 18.
Nd4 {[%clk 0:01:56.7]} 18... Nfxe4 {[%clk 0:01:38.5]} 19. Nxe4 {[%clk
0:01:41.4]} 19... Bxe4 {[%clk 0:01:32.6]} 20. Qc3 {[%clk 0:01:33.3]} 20... Qg5
{[%clk 0:01:30.6]} 21. Bc1 {[%clk 0:01:25.3]} 21... Qg6 {[%clk 0:01:28.3]} 22.
f3 {[%clk 0:01:19.6]} 22... Bd5 {[%clk 0:01:23.1]} 23. Bb2 {[%clk 0:01:16.4]}
23... b5 {[%clk 0:00:51.7]} 24. Nxb5 {[%clk 0:00:55.7]} 24... Rxe1 {[%clk
0:00:26.8]} 25. Qxe1 {[%clk 0:00:55.7]} 25... Bxf3 {[%clk 0:00:24.7]} 26. Nc7
{[%clk 0:00:45.1]} 26... Bxd1 {[%clk 0:00:16.9]} 27. Nxa8 {[%clk 0:00:44.7]}
27... Bxb3 {[%clk 0:00:16.6]} 28. Qxa5 {[%clk 0:00:42]} 28... Bd5 {[%clk
0:00:09]} 29. Nc7 {[%clk 0:00:39.8]} 29... Be4 {[%clk 0:00:09]} 30. Qc3 {[%clk
0:00:34.4]} 30... Na4 {[%clk 0:00:07.7]} 31. Qd2 {[%clk 0:00:30]} 31... Nxb2
{[%clk 0:00:06.4]} 32. Qxb2 {[%clk 0:00:30.9]} 32... Bc5+ {[%clk 0:00:06.4]} 33.
Kh1 {[%clk 0:00:31.3]} 33... Bd6 {[%clk 0:00:05.3]} 34. Ne8 {[%clk 0:00:26.4]}
34... Bf4 {[%clk 0:00:03.2]} 35. a4 {[%clk 0:00:23.7]} 1-0